bitfinex/quotes_SOLUSD_20250922
["timestamp","ask_amount","ask_price","bid_price","bid_amount"]
[1758548938921,0.2,222.43,222.41,4.13412762]
[1758548938922,0.2,222.43,222.38,4.13412762]
[1758548939243,0.2,222.43,222.39,36.5]
[1758548939801,0.2,222.43,222.39,41.71644387]
[1758548940628,0.2,222.43,222.39,40.99644387]
[1758548940815,0.2,222.43,222.4,0.72]
[1758548941017,0.2,222.43,222.39,40.99644387]
[1758548941217,0.2,222.43,222.39,41.71644387]
[1758548941527,0.2,222.43,222.39,37.22]
[1758548941841,0.2,222.43,222.39,36.5]
[1758548942213,0.2,222.43,222.4,0.72]
[1758548942505,0.2,222.43,222.39,40.99657946]
[1758548942816,0.2,222.43,222.39,36.5]
[1758548943015,0.2,222.43,222.41,13.59559401]
[1758548943218,0.2,222.43,222.42,4.13412762]
[1758548943420,0.2,222.43,222.42,36.48]
[1758548943626,0.2,222.43,222.42,37.2]
[1758548943807,0.2,222.43,222.42,41.69599856]
[1758548944127,0.2,222.43,222.42,140.02572019]
[1758548944620,0.2,222.43,222.42,131.39559401]
[1758548944819,0.2,222.43,222.42,135.52972163]
[1758548945021,0.2,222.43,222.42,140.02572019]
[1758548945416,0.2,222.43,222.42,81.32]
[1758548945634,0.2,222.43,222.42,126.41012618]
[1758548946439,0.2,222.43,222.42,140.00572019]
[1758548946834,0.2,222.43,222.42,99.04972163]
[1758548947036,0.2,222.43,222.42,121.91412762]
[1758548947213,0.2,222.43,222.42,80.6]
[1758548947421,0.88,222.43,222.42,36.46]
[1758548947724,0.2,222.43,222.42,36.46]
[1758548948136,0.2,222.43,222.37,9.35108397]
[1758548948137,26.2,222.43,222.37,4.85412762]
[1758548948331,31.01412762,222.43,222.38,36.46]
[1758548948518,31.01412762,222.43,222.39,36.46]
[1758548948719,0.68,222.42,222.39,36.46]
[1758548949017,0.68,222.42,222.4,36.46]
[1758548949537,0.68,222.42,222.35,5.21736488]
[1758548949538,26.0,222.4,222.35,5.21736488]
[1758548949713,26.0,222.4,222.34,4.13412762]
[1758548949714,26.0,222.4,222.36,37.18]
[1758548949911,26.0,222.4,222.36,36.46]
[1758548950218,0.68,222.39,222.37,36.46]
[1758548950536,0.68,222.38,222.36,36.46]
[1758548951215,0.68,222.37,222.3,0.72]
[1758548951528,4.81412762,222.37,222.29,4.13412762]
[1758548951737,4.81412762,222.37,222.28,0.72]
[1758548951738,0.68,222.36,222.3,36.46]
[1758548952233,4.81412762,222.35,222.27,4.13412762]
[1758548952534,4.81412762,222.35,222.28,36.46]
[1758548952741,0.2,222.43,222.31,4.13412762]
[1758548952742,0.68,222.38,222.31,4.13412762]
[1758548952911,0.68,222.42,222.33,4.13412762]
[1758548953240,26.0,222.4,222.34,36.46]
[1758548954039,4.13412762,222.41,222.34,36.46]
[1758548954241,4.13412762,222.39,222.34,36.46]
[1758548954820,4.13412762,222.39,222.34,37.13]
[1758548955018,0.68,222.42,222.34,37.13]
[1758548955224,4.13412762,222.39,222.32,0.67]
[1758548955535,4.13412762,222.35,222.32,36.46]
[1758548959327,4.13412762,222.35,222.28,0.67]
[1758548959533,4.13412762,222.33,222.31,36.48]
[1758548960346,0.69,222.36,222.31,36.48]
[1758548960536,0.69,222.35,222.25,80.6]
[1758548960740,4.13412762,222.3,222.24,0.67]
[1758548960943,4.13412762,222.28,222.25,36.48]
[1758548961932,4.13412762,222.26,222.21,0.67]
[1758548962251,4.13412762,222.26,222.22,37.15]
[1758548962437,4.13412762,222.27,222.22,37.15]
[1758548962830,4.13412762,222.27,222.22,0.67]
[1758548965139,4.13412762,222.25,222.17,0.67]
[1758548965444,4.13412762,222.25,222.18,36.48]
[1758548965646,4.13412762,222.23,222.18,36.48]
[1758548965848,4.13412762,222.23,222.18,37.15]
[1758548966025,0.69,222.25,222.18,36.48]
[1758548966352,4.13412762,222.24,222.19,0.67]
[1758548966555,4.82412762,222.24,222.18,36.48]
[1758548967243,0.69,222.27,222.19,0.72]
[1758548967436,0.69,222.33,222.21,4.13412762]
[1758548967639,4.13412762,222.3,222.23,4.13412762]
[1758548968144,4.13412762,222.3,222.24,0.72]
[1758548968753,0.69,222.35,222.25,4.13412762]
[1758548968926,4.82412762,222.35,222.27,4.13412762]
[1758548969334,4.82412762,222.35,222.28,0.72]
[1758548969925,30.13412762,222.35,222.28,0.72]
[1758548970129,4.13412762,222.41,222.33,4.13412762]
[1758548970353,0.69,222.4,222.33,4.13412762]
[1758548970651,26.69,222.4,222.33,4.13412762]
[1758548970852,26.69,222.4,222.33,8.63189038]
[1758548971060,26.0,222.38,222.32,37.2]
[1758548971243,26.0,222.38,222.32,36.48]
[1758548971544,4.13412762,222.35,222.27,4.13412762]
[1758548971755,4.13412762,222.35,222.28,36.48]
[1758548971756,4.13412762,222.31,222.28,36.48]
[1758548971942,4.13412762,222.31,222.28,37.2]
[1758548972158,26.0,222.38,222.29,4.85412762]
[1758548972159,4.13412762,222.37,222.29,4.85412762]
[1758548972447,26.0,222.38,222.29,4.85412762]
[1758548972448,4.13412762,222.35,222.29,4.85412762]
[1758548972654,26.0,222.32,222.29,0.72]
[1758548972840,26.0,222.32,222.28,40.9786762]
[1758548973040,26.0,222.32,222.29,0.72]
[1758548973838,6.04785755,222.35,222.3,0.72]
[1758548974037,26.0,222.32,222.31,0.72]
[1758548974536,26.0,222.33,222.31,0.72]
[1758548974741,26.0,222.33,222.3,4.49842555]
[1758548975044,26.0,222.33,222.31,0.72]
[1758548975649,26.0,222.31,222.3,4.49842555]
[1758548975848,26.0,222.31,222.3,85.09842555]
[1758548976752,26.0,222.31,222.3,121.57842555]
[1758548976941,3.89600263,222.47,222.31,13.59559401]
[1758548977250,3.89600263,222.47,222.33,13.59559401]
[1758548977251,0.69,222.42,222.33,13.59559401]
[1758548977455,6.04785755,222.4,222.34,0.72]
[1758548977855,6.04785755,222.38,222.33,36.48]
[1758548978165,6.04785755,222.36,222.31,36.48]
[1758548978450,6.04785755,222.34,222.31,36.48]
[1758548978955,26.0,222.32,222.31,36.48]
[1758548979632,0.69,222.38,222.3,4.4984133]
[1758548979830,26.0,222.32,222.3,4.4984133]
[1758548980042,26.0,222.32,222.3,5.2184133]
[1758548980572,26.0,222.3,222.26,6.76785755]
[1758548980734,26.0,222.42,222.23,13.59559401]
[1758548980735,26.0,222.26,222.23,13.59559401]
[1758548981144,26.0,222.26,222.23,14.31559401]
[1758548981351,26.0,222.26,222.23,18.81534852]
[1758548981554,6.04785755,222.27,222.23,18.81534852]
[1758548981555,6.04785755,222.28,222.23,5.21975451]
[1758548981755,32.04785755,222.28,222.22,36.48]
[1758548982079,32.04785755,222.28,222.23,4.49975231]
[1758548982364,26.0,222.28,222.24,0.72]
[1758548982571,6.04785755,222.33,222.25,14.31559401]
[1758548982739,6.04785755,222.34,222.27,13.59559401]
[1758548982932,6.04785755,222.34,222.28,4.4988303]
[1758548983156,6.04785755,222.34,222.28,5.2188303]
[1758548983359,26.0,222.31,222.28,5.2188303]
[1758548983659,26.0,222.31,222.29,0.72]
[1758548983838,26.0,222.33,222.3,0.72]
[1758548984154,26.0,222.31,222.28,15.74590606]
[1758548984358,26.0,222.31,222.28,16.46590606]
[1758548985755,0.69,222.36,222.28,16.46590606]
[1758548985756,26.0,222.32,222.28,16.46590606]
[1758548986136,26.0,222.32,222.28,5.2188303]
[1758548986343,26.0,222.31,222.28,4.4988303]
[1758548986543,26.0,222.31,222.27,4.4990125]
[1758548986748,0.69,222.31,222.27,4.4990125]
[1758548987138,0.69,222.34,222.27,4.4990125]
[1758548987343,6.73785755,222.34,222.27,18.09460651]
[1758548987532,26.0,222.31,222.27,29.34218827]
[1758548987735,26.0,222.31,222.28,20.36345156]
[1758548988244,26.0,222.31,222.29,0.72]
[1758548988448,26.0,222.31,222.3,36.46]
[1758548988958,26.0,222.32,222.3,36.46]
[1758548989153,26.0,222.31,222.3,36.46]
[1758548989463,26.0,222.31,222.3,40.95842555]
[1758548989958,6.73785755,222.35,222.3,40.95842555]
[1758548990163,26.0,222.32,222.3,40.95842555]
[1758548990569,0.69,222.41,222.32,13.59559401]
[1758548990765,6.04785755,222.35,222.32,117.06]
[1758548991069,6.04785755,222.33,222.3,80.6]
[1758548991368,6.04785755,222.31,222.28,36.46]
[1758548991570,6.04785755,222.29,222.26,36.46]
[1758548991769,26.0,222.27,222.26,36.46]
[1758548992070,32.73785755,222.27,222.23,4.49964167]
[1758548992961,0.69,222.32,222.24,14.31559401]
[1758548993266,26.0,222.27,222.25,36.46]
[1758548993469,26.0,222.27,222.26,18.81482914]
[1758548993651,26.0,222.28,222.26,18.81482914]
[1758548994654,26.0,222.29,222.26,18.81482914]
[1758548994871,26.0,222.29,222.26,4.49923513]
[1758548995370,26.69,222.29,222.26,4.49923513]
[1758548995563,0.69,222.33,222.27,0.72]
[1758548995877,26.0,222.3,222.28,13.59559401]
[1758548996050,26.0,222.3,222.28,50.05559401]
[1758548996660,6.04785755,222.33,222.28,50.77559401]
[1758548996875,6.73785755,222.34,222.28,50.77559401]
[1758548997577,6.73785755,222.34,222.29,4.49862791]
[1758548999548,6.04785755,222.34,222.29,4.49862791]
[1758548999753,6.76785755,222.34,222.29,4.49862791]
[1758549000173,0.72,222.33,222.29,4.49862791]
[1758549000471,0.72,222.4,222.31,13.59559401]
[1758549000654,6.96785755,222.43,222.35,19.64345156]
[1758549000853,6.96785755,222.43,222.36,37.16]
[1758549001461,6.24785755,222.43,222.36,37.16]
[1758549001675,32.24785755,222.43,222.36,37.16]
[1758549002179,32.24785755,222.43,222.37,15.7395332]
[1758549002882,32.24785755,222.43,222.38,14.29559401]
[1758549002883,0.2,222.43,222.38,14.29559401]
[1758549003095,0.2,222.43,222.41,6.04785755]
[1758549003383,0.2,222.43,222.42,50.05559401]
[1758549003587,0.2,222.43,222.4,81.3]
[1758549003759,0.92,222.43,222.38,13.59559401]
[1758549003958,26.0,222.41,222.38,50.05559401]
[1758549004362,26.0,222.41,222.38,54.55229658]
[1758549004873,6.04785755,222.42,222.38,54.55229658]
[1758549005083,26.2,222.43,222.38,55.25229658]
[1758549005266,26.2,222.43,222.39,0.7]
[1758549005873,26.2,222.43,222.38,54.55229658]
[1758549006184,6.04785755,222.41,222.37,13.59559401]
[1758549006392,6.04785755,222.41,222.38,36.46]
[1758549006774,0.72,222.42,222.38,36.46]
[1758549006775,6.04785755,222.42,222.38,36.46]
[1758549007178,6.76785755,222.42,222.38,36.46]
[1758549007357,0.2,222.43,222.38,40.95673686]
[1758549007358,6.24785755,222.43,222.38,40.95673686]
[1758549007562,6.24785755,222.43,222.38,41.65673686]
[1758549007774,6.24785755,222.43,222.38,36.46]
[1758549007973,6.04785755,222.42,222.36,13.59559401]
[1758549008181,6.04785755,222.41,222.37,36.46]
[1758549008385,6.04785755,222.41,222.38,36.46]
[1758549009493,6.04785755,222.42,222.38,36.46]
[1758549009664,6.04785755,222.41,222.38,36.46]
[1758549009863,6.76785755,222.41,222.38,36.46]
[1758549010492,6.04785755,222.4,222.35,0.7]
[1758549010681,6.76785755,222.39,222.36,36.44]
[1758549010864,0.72,222.39,222.35,36.44]
[1758549011067,32.04785755,222.4,222.36,0.7]
[1758549011491,6.04785755,222.39,222.34,80.6]
[1758549011664,6.04785755,222.36,222.29,0.7]
[1758549011866,6.04785755,222.35,222.3,54.53401956]
[1758549012083,6.76785755,222.34,222.3,36.44]
[1758549012270,6.76785755,222.34,222.27,13.59559401]
[1758549012271,6.04785755,222.33,222.31,36.44]
[1758549012578,6.76785755,222.32,222.29,36.44]
[1758549012896,26.0,222.3,222.26,36.44]
[1758549013071,6.04785755,222.28,222.25,36.44]
[1758549013820,26.0,222.31,222.26,14.29559401]
[1758549013961,26.0,222.31,222.26,14.31559401]
[1758549014161,26.0,222.31,222.27,0.72]
[1758549014368,26.0,222.29,222.28,36.44]
[1758549014587,26.0,222.29,222.26,50.03559401]
[1758549014778,26.0,222.29,222.26,54.5347865]
[1758549014968,6.04785755,222.31,222.26,55.2547865]
[1758549015169,6.04785755,222.31,222.26,54.5347865]
[1758549015384,6.04785755,222.31,222.26,50.75559401]
[1758549015685,0.68,222.3,222.26,54.53481327]
[1758549015892,6.04785755,222.28,222.23,11.24941518]
[1758549016107,0.68,222.29,222.22,13.59559401]
[1758549016108,0.68,222.27,222.22,36.44]
[1758549016394,6.04785755,222.25,222.22,36.44]
[1758549016762,6.72785755,222.24,222.19,4.50045625]
[1758549016962,0.68,222.23,222.17,5.22086978]
[1758549017188,6.04785755,222.21,222.18,36.44]
[1758549017906,6.04785755,222.22,222.18,36.44]
[1758549018283,6.04785755,222.24,222.19,0.72]
[1758549018482,6.04785755,222.24,222.2,0.72]
[1758549018776,6.04785755,222.24,222.21,4.50024751]
[1758549019296,6.04785755,222.24,222.19,4.50046154]
[1758549019501,6.72785755,222.24,222.19,4.50046154]
[1758549019697,6.04785755,222.24,222.19,5.22046154]
[1758549019998,0.68,222.3,222.21,19.64345156]
[1758549020200,6.04785755,222.29,222.23,13.59559401]
[1758549020499,6.04785755,222.31,222.24,6.76785755]
[1758549020688,6.04785755,222.31,222.25,54.53503158]
[1758549020689,32.04785755,222.31,222.25,54.53503158]
[1758549021005,6.04785755,222.3,222.25,54.53503158]
[1758549021206,6.04785755,222.3,222.25,55.25503158]
[1758549021405,32.04785755,222.31,222.26,0.72]
[1758549021697,6.04785755,222.32,222.27,0.72]
[1758549021901,6.72785755,222.32,222.25,65.7836255]
[1758549022088,6.04785755,222.31,222.25,65.7836255]
[1758549022678,6.04785755,222.31,222.25,29.3436255]
[1758549022881,6.04785755,222.31,222.26,36.44]
[1758549023077,32.04785755,222.33,222.28,13.59559401]
[1758549023280,26.0,222.31,222.29,0.72]
[1758549023484,26.0,222.31,222.29,37.16]
[1758549023823,26.0,222.31,222.29,36.44]
[1758549024191,0.68,222.33,222.29,36.44]
[1758549024192,26.0,222.33,222.29,36.44]
[1758549024505,26.0,222.31,222.3,0.72]
[1758549024680,26.0,222.31,222.3,85.09842555]
[1758549025499,26.0,222.32,222.3,85.09842555]
[1758549025702,26.0,222.31,222.3,80.6]
[1758549025915,26.0,222.31,222.3,85.09842555]
[1758549026694,26.0,222.32,222.3,85.09842555]
[1758549028615,26.0,222.33,222.3,85.09842555]
[1758549028801,26.0,222.33,222.3,102.39234697]
[1758549029007,26.0,222.34,222.31,37.14]
[1758549029409,26.0,222.33,222.31,36.44]
[1758549030208,26.0,222.34,222.31,36.44]
[1758549030418,26.0,222.34,222.31,80.6]
[1758549030598,26.7,222.33,222.32,40.93802087]
[1758549030797,26.0,222.33,222.32,40.93802087]
[1758549032117,26.7,222.33,222.31,80.6]
[1758549032326,0.7,222.32,222.31,117.04]
[1758549032612,6.04785755,222.34,222.31,85.0982232]
[1758549032807,26.0,222.32,222.31,85.0982232]
[1758549033409,0.7,222.35,222.31,138.83163875]
[1758549033410,26.0,222.35,222.31,138.83163875]
[1758549033800,26.0,222.36,222.32,6.74785755]
[1758549034024,26.0,222.36,222.33,42.48785755]
[1758549034196,6.74785755,222.42,222.34,6.74785755]
[1758549034396,6.04785755,222.39,222.35,36.44]
[1758549034596,4.12446079,222.38,222.35,37.14]
[1758549034825,4.82446079,222.38,222.36,4.49721172]
[1758549035119,4.82446079,222.38,222.35,36.44]
[1758549035120,4.12446079,222.37,222.35,40.93738408]
[1758549035326,4.12446079,222.36,222.35,121.53738408]
[1758549035792,4.12446079,222.37,222.35,121.53738408]
[1758549036915,4.12446079,222.36,222.35,85.09738408]
[1758549037120,4.12446079,222.37,222.35,85.09738408]
[1758549037309,0.2,222.43,222.36,36.42]
[1758549037510,26.0,222.4,222.36,117.72]
[1758549037717,4.12446079,222.41,222.36,117.72]
[1758549037718,4.12446079,222.41,222.37,0.7]
[1758549038024,0.2,222.43,222.38,0.7]
[1758549038025,26.0,222.42,222.38,0.7]
[1758549038523,26.0,222.42,222.39,37.12]
[1758549038698,0.2,222.43,222.4,16.43741006]
[1758549038898,0.2,222.43,222.41,36.42]
[1758549039098,1.7829628,222.43,222.41,36.42]
[1758549039831,1.5829628,222.42,222.41,36.42]
[1758549040733,1.5829628,222.42,222.41,40.91620071]
[1758549041721,1.5829628,222.42,222.41,36.42]
[1758549042324,1.5829628,222.42,222.38,4.49680726]
[1758549042512,1.5829628,222.41,222.39,36.42]
[1758549043013,1.5829628,222.4,222.38,4.49680726]
[1758549043225,1.5829628,222.4,222.39,36.42]
[1758549043820,2.2829628,222.4,222.37,85.09699544]
[1758549044017,1.5829628,222.38,222.37,85.09699544]
[1758549044219,2.2829628,222.38,222.37,80.6]
[1758549044729,2.2829628,222.38,222.34,36.4]
[1758549044913,0.2,222.43,222.31,81.3]
[1758549044914,1.5829628,222.35,222.31,81.3]
[1758549045118,1.5829628,222.32,222.31,4.49810867]
[1758549045424,2.2829628,222.32,222.22,0.7]
[1758549045628,1.5829628,222.25,222.23,36.4]
[1758549046123,1.5829628,222.24,222.2,0.7]
[1758549046331,1.5829628,222.24,222.21,37.1]
[1758549046833,1.5829628,222.24,222.22,4.500045]
[1758549047037,1.5829628,222.24,222.23,36.4]
[1758549048318,1.5829628,222.24,222.22,4.500045]
[1758549048527,0.7,222.27,222.23,36.4]
[1758549048729,0.7,222.26,222.23,36.4]
[1758549049122,0.7,222.26,222.23,40.89973217]
[1758549049447,13.59559401,222.38,222.23,40.89973217]
[1758549049448,26.0,222.35,222.24,0.7]
[1758549049622,4.13001863,222.27,222.25,36.4]
[1758549049949,0.7,222.3,222.25,36.4]
[1758549050117,4.13001863,222.26,222.25,36.4]
[1758549050312,13.59559401,222.42,222.25,37.1]
[1758549050542,4.13001863,222.29,222.26,0.7]
[1758549050748,4.13001863,222.31,222.27,37.1]
[1758549050935,4.13001863,222.31,222.28,0.7]
[1758549051126,4.13001863,222.33,222.3,15.74448942]
[1758549051320,0.7,222.38,222.31,37.1]
[1758549051321,4.13001863,222.34,222.31,37.1]
[1758549051527,4.13001863,222.35,222.31,36.4]
[1758549051736,13.79559401,222.43,222.32,0.7]
[1758549051737,4.13001863,222.36,222.32,0.7]
[1758549051918,4.13001863,222.36,222.33,36.4]
[1758549052246,4.13001863,222.36,222.33,37.1]
[1758549052731,4.13001863,222.35,222.33,36.4]
[1758549053861,4.13001863,222.35,222.34,4.49761626]
[1758549054018,26.0,222.4,222.34,16.44165691]
[1758549054220,26.0,222.4,222.35,36.4]
[1758549054221,4.13001863,222.37,222.35,36.4]
[1758549056038,26.0,222.42,222.36,4.49721172]
[1758549056354,4.13001863,222.37,222.36,4.49721172]
[1758549056514,4.83001863,222.37,222.3,80.6]
[1758549056719,4.13001863,222.34,222.31,40.89803382]
[1758549056919,4.13001863,222.33,222.31,41.59803382]
[1758549057239,4.13001863,222.33,222.31,52.84359182]
[1758549057624,0.7,222.37,222.31,52.84359182]
[1758549057824,4.13001863,222.34,222.31,52.84359182]
[1758549058342,0.7,222.37,222.31,52.84359182]
[1758549058544,26.2,222.43,222.31,52.84359182]
[1758549058545,0.7,222.4,222.32,0.69]
[1758549058740,4.13001863,222.38,222.33,36.4]
[1758549059047,4.13001863,222.38,222.34,0.69]
[1758549059239,0.2,222.43,222.35,37.07]
[1758549059240,0.9,222.43,222.35,37.07]
[1758549059442,4.13001863,222.41,222.35,36.38]
[1758549059655,4.13001863,222.4,222.36,0.69]
[1758549059831,4.13001863,222.4,222.37,36.38]
[1758549060154,4.13001863,222.4,222.37,116.98]
[1758549060330,4.13001863,222.41,222.38,4.49680726]
[1758549060530,0.2,222.43,222.39,37.07]
[1758549060730,0.2,222.43,222.4,13.59559401]
[1758549060950,0.2,222.43,222.41,36.38]
[1758549061123,0.2,222.43,222.41,37.07]
[1758549061324,0.2,222.43,222.42,0.69]
[1758549062347,0.2,222.43,222.42,5.18599856]
[1758549063546,4.33001863,222.43,222.42,4.49599856]
[1758549063744,5.03001863,222.43,222.39,4.49642968]
[1758549063966,0.9,222.43,222.4,36.38]
[1758549064336,0.9,222.43,222.41,4.49620071]
[1758549064555,0.7,222.42,222.35,81.29]
[1758549064878,0.7,222.42,222.36,15.74024104]
[1758549065033,0.7,222.41,222.37,36.38]
[1758549065231,4.13001863,222.38,222.37,36.38]
[1758549065453,4.83001863,222.38,222.37,36.38]
[1758549065636,4.83001863,222.38,222.36,4.49721172]
[1758549065834,4.13001863,222.37,222.36,40.87721172]
[1758549066247,0.7,222.38,222.34,4.49744349]
[1758549066433,0.7,222.37,222.35,36.36]
[1758549066635,0.7,222.37,222.35,40.85734038]
[1758549066838,0.2,222.43,222.35,40.85734038]
[1758549067064,0.7,222.4,222.35,40.85734038]
[1758549067366,0.7,222.39,222.35,40.85734038]
[1758549067562,4.13001863,222.36,222.35,40.85734038]
[1758549069050,4.83001863,222.36,222.35,40.85734038]
[1758549069248,4.13001863,222.36,222.35,40.85734038]
[1758549069557,4.13001863,222.37,222.35,52.79087534]
[1758549069865,0.9,222.43,222.35,52.79087534]
[1758549070046,4.13001863,222.4,222.36,0.69]
[1758549070361,4.13001863,222.4,222.37,37.05]
[1758549070566,4.13001863,222.38,222.37,36.36]
[1758549070761,4.83001863,222.38,222.37,36.36]
[1758549070956,4.83001863,222.38,222.35,96.34087534]
[1758549070957,4.83001863,222.38,222.36,4.49705902]
[1758549071166,4.83001863,222.37,222.33,4.4977296]
[1758549071370,4.13001863,222.34,222.33,40.8577296]
[1758549071840,26.0,222.4,222.33,52.79227599]
[1758549072160,4.13001863,222.39,222.34,0.69]
[1758549072466,4.13001863,222.39,222.33,52.10227599]
[1758549072467,26.0,222.4,222.33,4.4977296]
[1758549072651,0.7,222.38,222.34,36.36]
[1758549072849,0.7,222.37,222.35,4.49741398]
[1758549073164,26.7,222.42,222.36,36.36]
[1758549073863,4.13001863,222.37,222.36,36.36]
[1758549074166,4.13001863,222.38,222.36,36.36]
[1758549074348,0.2,222.43,222.37,0.68]
[1758549074661,4.13001863,222.4,222.38,36.36]
[1758549074859,4.13001863,222.4,222.39,4.49660506]
[1758549077761,0.2,222.43,222.39,15.73811771]
[1758549077942,0.2,222.43,222.4,37.04]
[1758549078146,0.2,222.43,222.4,117.64]
[1758549078453,0.2,222.43,222.41,0.68]
[1758549078653,0.2,222.43,222.42,36.34]
[1758549078854,0.2,222.43,222.42,116.94]
[1758549079456,0.2,222.43,222.42,122.11599856]
[1758549080773,1e-08,222.43,222.42,122.11599856]
[1758549080971,1e-08,222.43,222.42,126.24601719]
[1758549081264,1e-08,222.43,222.42,59.2416112]
[1758549082454,1e-08,222.47,222.46,4.13001863]
[1758549082647,1e-08,222.49,222.48,4.49478604]
[1758549082854,1e-08,222.49,222.48,44.96480467]
[1758549083053,1e-08,222.49,222.48,45.64480467]
[1758549083854,1e-08,222.49,222.48,139.84039868]
[1758549084545,0.2,222.56,222.5,13.59559401]
[1758549084753,0.2,222.56,222.55,4.13001863]
[1758549084971,1e-08,222.56,222.55,26.0]
[1758549085265,1e-08,222.56,222.55,36.32]
[1758549086846,1e-08,222.56,222.55,40.81337227]
[1758549087052,1e-08,222.56,222.55,41.49337227]
[1758549087750,1e-08,222.56,222.55,40.81337227]
[1758549088483,1e-08,222.56,222.55,41.49337227]
[1758549088660,1e-08,222.57,222.55,41.49337227]
[1758549088854,1e-08,222.57,222.56,18.76876439]
[1758549089856,1e-08,222.57,222.56,4.49317038]
[1758549090163,1e-08,222.57,222.56,121.39317037]
[1758549090859,1e-08,222.57,222.56,122.07317037]
[1758549092365,1e-08,222.57,222.56,135.66876438]
[1758549092752,0.2,222.65,222.6,13.59559401]
[1758549092956,0.2,222.65,222.62,4.49195939]
[1758549093263,0.2,222.65,222.63,36.3]
[1758549095162,0.2,222.65,222.64,4.49155587]
[1758549095355,1e-08,222.65,222.64,18.76714988]
[1758549095559,1e-08,222.66,222.65,13.59559401]
[1758549095756,1e-08,222.66,222.65,94.195594]
[1758549095963,1e-08,222.66,222.65,80.59999999]
[1758549096163,1e-08,222.66,222.65,116.87999999]
[1758549096990,0.67000001,222.66,222.65,116.87999999]
[1758549097492,1e-08,222.66,222.65,121.37135413]
[1758549098161,0.67000001,222.66,222.65,85.09135413]
[1758549098354,1e-08,222.66,222.65,121.37135413]
[1758549099757,1e-08,222.66,222.65,122.05135413]
[1758549099963,1e-08,222.66,222.65,135.64694814]
[1758549100366,1e-08,222.66,222.65,134.96694814]
[1758549100559,1e-08,222.66,222.65,135.64694814]
[1758549100759,1e-08,222.66,222.65,54.36694815]
[1758549101186,1e-08,222.66,222.65,55.04694815]
[1758549101858,1e-08,222.66,222.65,54.36694815]
[1758549103180,1e-08,222.66,222.65,40.77135414]
[1758549103903,1e-08,222.66,222.65,40.75135414]
[1758549104264,1e-08,222.66,222.65,55.02694815]
[1758549104869,1e-08,222.66,222.65,135.62694815]
[1758549105665,1e-08,222.73,222.69,26.0]
[1758549105865,1e-08,222.73,222.71,4.49014413]
[1758549106189,0.67,222.72,222.68,4.49074905]
[1758549106360,6.02776177,222.73,222.69,36.26]
[1758549106560,6.69776176,222.71,222.68,15.71762169]
[1758549106780,0.67,222.7,222.69,36.24]
[1758549107170,1e-08,222.73,222.69,36.24]
[1758549107375,0.67000001,222.73,222.69,36.24]
[1758549107584,0.67,222.72,222.69,36.24]
[1758549107786,0.67,222.71,222.68,15.71762169]
[1758549107977,0.67,222.7,222.69,40.73054739]
[1758549109896,0.67,222.7,222.65,15.71973949]
[1758549110080,0.67,222.69,222.66,36.24]
[1758549110793,6.02776176,222.71,222.66,36.24]
[1758549110998,0.67,222.72,222.66,36.24]
[1758549111186,1e-08,222.73,222.66,36.24]
[1758549112183,1e-08,222.73,222.67,15.71832756]
[1758549112496,1e-08,222.73,222.69,13.59559401]
[1758549112683,1e-08,222.73,222.7,36.24]
[1758549112884,1e-08,222.73,222.7,36.92]
[1758549113094,1e-08,222.73,222.71,14.27559401]
[1758549113287,1e-08,222.73,222.72,49.83559401]
[1758549113872,1e-08,222.73,222.72,50.51559401]